[Event "Late-Titled-Tuesday-Blitz-April-30-2024"]
[Site "Chess.com"]
[Date "2024.04.30"]
[Round "4"]
[White "nabukatnezarr"]
[Black "Zapateado"]
[Result "1-0"]
[WhiteElo "2591"]
[BlackElo "2381"]
[TimeControl "180+1"]
[EndTime "14:41:18 PDT"]
[Termination "nabukatnezarr won on time"]

1. d4 {[%clk 0:03:00.9]} 1... d5 {[%clk 0:02:59.8]} 2. Nf3 {[%clk 0:03:01.7]}
2... Nf6 {[%clk 0:02:59.9]} 3. g3 {[%clk 0:03:02.3]} 3... c5 {[%clk 0:03:00.2]}
4. Bg2 {[%clk 0:03:02.6]} 4... g6 {[%clk 0:03:00.4]} 5. O-O {[%clk 0:03:03.1]}
5... Bg7 {[%clk 0:03:00.8]} 6. c4 {[%clk 0:03:03.7]} 6... O-O {[%clk 0:03:00.6]}
7. cxd5 {[%clk 0:03:03.5]} 7... cxd4 {[%clk 0:03:01.1]} 8. Nxd4 {[%clk
0:03:01.8]} 8... Nxd5 {[%clk 0:03:01.5]} 9. Nc3 {[%clk 0:03:02.4]} 9... Nxc3
{[%clk 0:03:00]} 10. bxc3 {[%clk 0:03:03.3]} 10... e5 {[%clk 0:02:58.9]} 11. Nb5
{[%clk 0:02:58.9]} 11... Qxd1 {[%clk 0:02:56.8]} 12. Rxd1 {[%clk 0:02:59.8]}
12... Na6 {[%clk 0:02:54.6]} 13. Ba3 {[%clk 0:02:58]} 13... Re8 {[%clk
0:02:51.1]} 14. Bd5 {[%clk 0:02:40.6]} 14... Bf8 {[%clk 0:02:10.4]} 15. Bxf8
{[%clk 0:02:24.7]} 15... Rxf8 {[%clk 0:02:01.8]} 16. Nd6 {[%clk 0:02:05.6]}
16... Nc5 {[%clk 0:01:57.6]} 17. Rab1 {[%clk 0:01:57.1]} 17... Rb8 {[%clk
0:01:50.5]} 18. Ne4 {[%clk 0:01:37.2]} 18... Nxe4 {[%clk 0:01:28.5]} 19. Bxe4
{[%clk 0:01:38.1]} 19... f5 {[%clk 0:01:27.4]} 20. Bd5+ {[%clk 0:01:34.7]} 20...
Kg7 {[%clk 0:01:27.6]} 21. c4 {[%clk 0:01:23.5]} 21... b6 {[%clk 0:01:19.5]} 22.
c5 {[%clk 0:01:23.1]} 22... Ba6 {[%clk 0:01:14.1]} 23. cxb6 {[%clk 0:01:18.3]}
23... Rxb6 {[%clk 0:01:15]} 24. Rxb6 {[%clk 0:00:59.9]} 24... axb6 {[%clk
0:01:15.9]} 25. Bb3 {[%clk 0:01:00.6]} 25... Bxe2 {[%clk 0:01:14.2]} 26. Rd7+
{[%clk 0:00:51.5]} 26... Kh6 {[%clk 0:01:13.7]} 27. Rd6 {[%clk 0:00:35.8]} 27...
Bf3 {[%clk 0:01:05.4]} 28. Kf1 {[%clk 0:00:36]} 28... Rc8 {[%clk 0:01:03.1]} 29.
Ke1 {[%clk 0:00:36.6]} 29... b5 {[%clk 0:00:58.9]} 30. Kd2 {[%clk 0:00:35.9]}
30... Kg5 {[%clk 0:00:43]} 31. Rd7 {[%clk 0:00:32.6]} 31... h5 {[%clk
0:00:27.6]} 32. h4+ {[%clk 0:00:28.1]} 32... Kg4 {[%clk 0:00:24.6]} 33. Rg7
{[%clk 0:00:23.2]} 33... Rc6 {[%clk 0:00:23.6]} 34. Bf7 {[%clk 0:00:21.9]} 34...
Rd6+ {[%clk 0:00:16.5]} 35. Kc3 {[%clk 0:00:15]} 35... Kh3 {[%clk 0:00:16.1]}
36. Bxg6 {[%clk 0:00:13.3]} 36... f4 {[%clk 0:00:14.1]} 37. Bf5+ {[%clk
0:00:12.8]} 37... Kg2 {[%clk 0:00:13.5]} 38. gxf4+ {[%clk 0:00:12.8]} 38... Kxf2
{[%clk 0:00:13.6]} 39. fxe5 {[%clk 0:00:13.5]} 39... Rd5 {[%clk 0:00:13.7]} 40.
Re7 {[%clk 0:00:12.2]} 40... Kg3 {[%clk 0:00:13]} 41. Bc2 {[%clk 0:00:11.9]}
41... Kxh4 {[%clk 0:00:13.1]} 42. Bb3 {[%clk 0:00:11.2]} 42... Rd8 {[%clk
0:00:10.4]} 43. e6 {[%clk 0:00:11.6]} 43... Kg5 {[%clk 0:00:10.3]} 44. Rd7
{[%clk 0:00:11.4]} 44... Re8 {[%clk 0:00:10.2]} 45. Rd6 {[%clk 0:00:06.8]} 45...
Kf6 {[%clk 0:00:08.3]} 46. Rb6 {[%clk 0:00:06.3]} 46... h4 {[%clk 0:00:06.3]}
47. Rb7 {[%clk 0:00:02.6]} 1-0

[Event "Late-Titled-Tuesday-Blitz-April-30-2024"]
[Site "Chess.com"]
[Date "2024.04.30"]
[Round "4"]
[White "Hirna2005"]
[Black "wild3000"]
[Result "1-0"]
[WhiteElo "2364"]
[BlackElo "2495"]
[TimeControl "180+1"]
[EndTime "14:41:19 PDT"]
[Termination "Hirna2005 won on time"]

1. e4 {[%clk 0:02:57.9]} 1... e6 {[%clk 0:01:45]} 2. d4 {[%clk 0:02:57.4]} 2...
a6 {[%clk 0:01:45.2]} 3. Nf3 {[%clk 0:02:54.5]} 3... b5 {[%clk 0:01:45.2]} 4. c3
{[%clk 0:02:54]} 4... Bb7 {[%clk 0:01:44.5]} 5. Bd3 {[%clk 0:02:53.2]} 5... c5
{[%clk 0:01:42.7]} 6. O-O {[%clk 0:02:51.6]} 6... Nf6 {[%clk 0:01:40.4]} 7. Re1
{[%clk 0:02:50.9]} 7... d6 {[%clk 0:01:40.6]} 8. a4 {[%clk 0:02:50]} 8... bxa4
{[%clk 0:01:36.2]} 9. Qxa4+ {[%clk 0:02:47.9]} 9... Nbd7 {[%clk 0:01:35.9]} 10.
Bf4 {[%clk 0:02:39]} 10... Be7 {[%clk 0:01:33.7]} 11. Nbd2 {[%clk 0:02:27.2]}
11... O-O {[%clk 0:01:33.4]} 12. e5 {[%clk 0:02:21.2]} 12... Nd5 {[%clk
0:01:32.6]} 13. Bg3 {[%clk 0:02:12.6]} 13... cxd4 {[%clk 0:01:32.3]} 14. exd6
{[%clk 0:02:08.2]} 14... Bf6 {[%clk 0:01:21.9]} 15. Nxd4 {[%clk 0:02:07.8]}
15... Nc5 {[%clk 0:01:18.9]} 16. Qc2 {[%clk 0:02:03.6]} 16... Nxd3 {[%clk
0:01:18.7]} 17. Qxd3 {[%clk 0:02:03.7]} 17... e5 {[%clk 0:01:14]} 18. Nf5 {[%clk
0:02:00.2]} 18... g6 {[%clk 0:01:11.6]} 19. Nh6+ {[%clk 0:01:53.2]} 19... Kg7
{[%clk 0:01:10.5]} 20. Ng4 {[%clk 0:01:53.1]} 20... Nf4 {[%clk 0:01:03.1]} 21.
Bxf4 {[%clk 0:01:47.6]} 21... exf4 {[%clk 0:01:04]} 22. Nxf6 {[%clk 0:01:42.1]}
22... Qxf6 {[%clk 0:01:04.9]} 23. Nf3 {[%clk 0:01:36.4]} 23... Rfd8 {[%clk
0:01:01.2]} 24. Rad1 {[%clk 0:01:35.6]} 24... Bxf3 {[%clk 0:01:00.1]} 25. Qxf3
{[%clk 0:01:33.5]} 25... Rab8 {[%clk 0:01:00.2]} 26. Qc6 {[%clk 0:01:04.8]}
26... Rxb2 {[%clk 0:00:56.2]} 27. c4 {[%clk 0:00:59.5]} 27... a5 {[%clk
0:00:41.4]} 28. c5 {[%clk 0:00:59]} 28... Rc2 {[%clk 0:00:41.4]} 29. Qd5 {[%clk
0:00:56.6]} 29... f3 {[%clk 0:00:28.6]} 30. gxf3 {[%clk 0:00:50.2]} 30... Qh4
{[%clk 0:00:21.6]} 31. Rd2 {[%clk 0:00:34.7]} 31... Rxd2 {[%clk 0:00:12.6]} 32.
Qxd2 {[%clk 0:00:34.4]} 32... Qc4 {[%clk 0:00:12.1]} 33. Rc1 {[%clk 0:00:29.1]}
33... Qe6 {[%clk 0:00:11.6]} 34. Qxa5 {[%clk 0:00:26.2]} 34... Rb8 {[%clk
0:00:07.2]} 35. Qc3+ {[%clk 0:00:22.9]} 35... f6 {[%clk 0:00:06]} 36. Re1 {[%clk
0:00:21.5]} 36... Qd5 {[%clk 0:00:04.9]} 37. Re7+ {[%clk 0:00:19.8]} 37... Kh6
{[%clk 0:00:05]} 38. Qxf6 {[%clk 0:00:18.4]} 38... Rb1+ {[%clk 0:00:04.7]} 39.
Kg2 {[%clk 0:00:18.6]} 39... Qxc5 {[%clk 0:00:02.5]} 40. Qf4+ {[%clk 0:00:16.2]}
40... Qg5+ {[%clk 0:00:01.8]} 41. Qxg5+ {[%clk 0:00:15.6]} 41... Kxg5 {[%clk
0:00:02.7]} 42. Rxh7 {[%clk 0:00:15.4]} 42... Rd1 {[%clk 0:00:03.6]} 43. d7
{[%clk 0:00:15.3]} 43... Kf6 {[%clk 0:00:04]} 44. f4 {[%clk 0:00:15.1]} 44...
Kf5 {[%clk 0:00:03.9]} 45. Kf3 {[%clk 0:00:15.2]} 45... Rd3+ {[%clk 0:00:04.1]}
46. Ke2 {[%clk 0:00:15.4]} 46... Rd6 {[%clk 0:00:04.2]} 47. Rf7+ {[%clk
0:00:14.5]} 47... Ke6 {[%clk 0:00:03.3]} 48. Rg7 {[%clk 0:00:15]} 48... Kf5
{[%clk 0:00:03.4]} 49. Ke3 {[%clk 0:00:14.7]} 49... Kf6 {[%clk 0:00:02]} 50. Rh7
{[%clk 0:00:14.1]} 50... Kf5 {[%clk 0:00:02.2]} 51. h4 {[%clk 0:00:14.2]} 51...
Kf6 {[%clk 0:00:02]} 52. h5 {[%clk 0:00:14]} 52... gxh5 {[%clk 0:00:01.9]} 53.
Rh6+ {[%clk 0:00:14.4]} 1-0

[Event "Late-Titled-Tuesday-Blitz-April-30-2024"]
[Site "Chess.com"]
[Date "2024.04.30"]
[Round "4"]
[White "XDPS"]
[Black "MITerryble"]
[Result "0-1"]
[WhiteElo "2827"]
[BlackElo "3019"]
[TimeControl "180+1"]
[EndTime "14:41:24 PDT"]
[Termination "MITerryble won by resignation"]

1. d4 {[%clk 0:03:00.9]} 1... e6 {[%clk 0:03:00.1]} 2. c4 {[%clk 0:03:00.3]}
2... b6 {[%clk 0:02:59.3]} 3. Nc3 {[%clk 0:03:00.1]} 3... Bb7 {[%clk 0:02:59.5]}
4. e3 {[%clk 0:03:00.2]} 4... Bb4 {[%clk 0:02:58.5]} 5. Bd2 {[%clk 0:03:00.1]}
5... Nf6 {[%clk 0:02:58.6]} 6. Nf3 {[%clk 0:03:00.8]} 6... O-O {[%clk 0:02:58]}
7. Bd3 {[%clk 0:03:00.8]} 7... d6 {[%clk 0:02:58.3]} 8. O-O {[%clk 0:02:59.6]}
8... Nbd7 {[%clk 0:02:58.6]} 9. a3 {[%clk 0:02:59.7]} 9... Bxc3 {[%clk
0:02:58.7]} 10. Bxc3 {[%clk 0:03:00.6]} 10... Qe7 {[%clk 0:02:59.4]} 11. Nd2
{[%clk 0:03:00.6]} 11... e5 {[%clk 0:02:59.6]} 12. Re1 {[%clk 0:03:00.7]} 12...
Rfe8 {[%clk 0:02:59.6]} 13. b4 {[%clk 0:02:56.3]} 13... e4 {[%clk 0:02:51.8]}
14. Bf1 {[%clk 0:02:55.6]} 14... d5 {[%clk 0:02:47.6]} 15. c5 {[%clk 0:02:51.6]}
15... Nf8 {[%clk 0:02:45.3]} 16. a4 {[%clk 0:02:51.8]} 16... c6 {[%clk
0:02:36.7]} 17. cxb6 {[%clk 0:02:44]} 17... axb6 {[%clk 0:02:37.6]} 18. a5
{[%clk 0:02:44.5]} 18... b5 {[%clk 0:02:38.1]} 19. Nb3 {[%clk 0:02:44.6]} 19...
Ng6 {[%clk 0:02:35]} 20. Nc5 {[%clk 0:02:44.6]} 20... Bc8 {[%clk 0:02:34.7]} 21.
Rc1 {[%clk 0:02:39.6]} 21... Nh4 {[%clk 0:02:34.2]} 22. h3 {[%clk 0:02:33.8]}
22... Bxh3 {[%clk 0:02:30]} 23. f3 {[%clk 0:01:50.2]} 23... Qd6 {[%clk
0:02:05.5]} 24. f4 {[%clk 0:01:39.4]} 24... Bg4 {[%clk 0:01:56.5]} 25. Qc2
{[%clk 0:01:38.8]} 25... Nh5 {[%clk 0:01:50.8]} 26. Qf2 {[%clk 0:01:06.7]} 26...
Nf5 {[%clk 0:01:47.3]} 27. Be2 {[%clk 0:01:04.9]} 27... Qg6 {[%clk 0:01:37.2]}
28. Bxg4 {[%clk 0:00:50.5]} 28... Qxg4 {[%clk 0:01:38.1]} 29. Qe2 {[%clk
0:00:50.9]} 29... Qh4 {[%clk 0:01:34.6]} 30. g4 {[%clk 0:00:46.6]} 30... Nhg3
{[%clk 0:01:33.5]} 31. Qg2 {[%clk 0:00:43.5]} 31... Qxg4 {[%clk 0:01:32.1]} 32.
Kf2 {[%clk 0:00:44.1]} 32... Qh4 {[%clk 0:01:22.4]} 33. Kg1 {[%clk 0:00:41.2]}
33... Rad8 {[%clk 0:01:19.7]} 34. Nb7 {[%clk 0:00:34.8]} 34... Rd7 {[%clk
0:01:13.6]} 35. a6 {[%clk 0:00:34.8]} 35... Ra8 {[%clk 0:01:14.2]} 36. Ra1
{[%clk 0:00:34.5]} 36... h5 {[%clk 0:01:04.1]} 37. Bd2 {[%clk 0:00:28.1]} 37...
Kh7 {[%clk 0:00:56.9]} 38. Rec1 {[%clk 0:00:28.1]} 38... Rc7 {[%clk 0:00:50.9]}
39. Be1 {[%clk 0:00:23.6]} 39... Qg4 {[%clk 0:00:47.7]} 40. Bxg3 {[%clk
0:00:24.1]} 40... Nxg3 {[%clk 0:00:48.6]} 41. Kh2 {[%clk 0:00:21.7]} 41... h4
{[%clk 0:00:48.5]} 42. Nc5 {[%clk 0:00:19.6]} 42... f6 {[%clk 0:00:42.5]} 43.
Rc2 {[%clk 0:00:20]} 43... g5 {[%clk 0:00:42.5]} 44. Rf2 {[%clk 0:00:20.1]}
44... Rg7 {[%clk 0:00:41]} 45. f5 {[%clk 0:00:19.7]} 45... Rga7 {[%clk
0:00:36.5]} 46. Qh3 {[%clk 0:00:19.8]} 46... Qh5 {[%clk 0:00:31.8]} 47. Qg2
{[%clk 0:00:17.8]} 47... Kg8 {[%clk 0:00:26.4]} 48. Rfa2 {[%clk 0:00:16.4]}
48... Kf7 {[%clk 0:00:26.2]} 49. Ne6 {[%clk 0:00:15.2]} 49... Nxf5 {[%clk
0:00:25.6]} 50. Nc5 {[%clk 0:00:15.3]} 50... Qf3 {[%clk 0:00:24.5]} 51. Qxf3
{[%clk 0:00:15]} 51... exf3 {[%clk 0:00:25.4]} 52. e4 {[%clk 0:00:15.9]} 52...
Nxd4 {[%clk 0:00:23.7]} 53. exd5 {[%clk 0:00:16.2]} 53... cxd5 {[%clk
0:00:24.6]} 54. Kh3 {[%clk 0:00:15.5]} 54... Nc6 {[%clk 0:00:24.6]} 55. Rb1
{[%clk 0:00:14.8]} 55... f5 {[%clk 0:00:24.9]} 56. Ra3 {[%clk 0:00:14.1]} 56...
Kg6 {[%clk 0:00:19.5]} 57. Rba1 {[%clk 0:00:12.6]} 57... Kh5 {[%clk 0:00:19.4]}
58. Ne6 {[%clk 0:00:09.9]} 58... g4+ {[%clk 0:00:19]} 59. Kh2 {[%clk 0:00:10]}
59... Nxb4 {[%clk 0:00:19.9]} 60. Nc5 {[%clk 0:00:08.9]} 60... f2 {[%clk
0:00:19]} 61. Kg2 {[%clk 0:00:08.9]} 61... Nc2 {[%clk 0:00:18.4]} 0-1

[Event "Late-Titled-Tuesday-Blitz-April-30-2024"]
[Site "Chess.com"]
[Date "2024.04.30"]
[Round "4"]
[White "AungTZ"]
[Black "arenal72"]
[Result "1-0"]
[WhiteElo "2180"]
[BlackElo "2612"]
[TimeControl "180+1"]
[EndTime "14:41:25 PDT"]
[Termination "AungTZ won on time"]

1. e4 {[%clk 0:02:59.5]} 1... Nc6 {[%clk 0:02:58.2]} 2. Nf3 {[%clk 0:02:59.3]}
2... d6 {[%clk 0:02:57.1]} 3. d4 {[%clk 0:02:59]} 3... Nf6 {[%clk 0:02:57.5]} 4.
Nc3 {[%clk 0:02:58.6]} 4... g6 {[%clk 0:02:56.2]} 5. Bb5 {[%clk 0:02:51.3]} 5...
a6 {[%clk 0:02:55.7]} 6. Bxc6+ {[%clk 0:02:50.9]} 6... bxc6 {[%clk 0:02:56.6]}
7. e5 {[%clk 0:02:49.8]} 7... Nd5 {[%clk 0:02:55.9]} 8. Nxd5 {[%clk 0:02:46]}
8... cxd5 {[%clk 0:02:56.8]} 9. h3 {[%clk 0:02:43.6]} 9... Bg7 {[%clk
0:02:56.9]} 10. Bf4 {[%clk 0:02:39.9]} 10... O-O {[%clk 0:02:56.1]} 11. O-O
{[%clk 0:02:39.4]} 11... Rb8 {[%clk 0:02:54.9]} 12. b3 {[%clk 0:02:38.3]} 12...
Bf5 {[%clk 0:02:54.3]} 13. Re1 {[%clk 0:02:36.7]} 13... Qd7 {[%clk 0:02:52.2]}
14. Qd2 {[%clk 0:02:36.3]} 14... f6 {[%clk 0:02:29.9]} 15. e6 {[%clk 0:02:10.3]}
15... Bxe6 {[%clk 0:02:28.4]} 16. Qe3 {[%clk 0:02:10]} 16... Bf5 {[%clk
0:02:09.7]} 17. Qxe7 {[%clk 0:02:08.9]} 17... Qxe7 {[%clk 0:02:09.7]} 18. Rxe7
{[%clk 0:02:08.8]} 18... Rf7 {[%clk 0:02:09.1]} 19. Re2 {[%clk 0:02:02.3]} 19...
Kf8 {[%clk 0:01:57.2]} 20. Rae1 {[%clk 0:01:59.7]} 20... h5 {[%clk 0:01:49]} 21.
Nh4 {[%clk 0:01:51.3]} 21... Rd7 {[%clk 0:01:27]} 22. Nxf5 {[%clk 0:01:44.6]}
22... gxf5 {[%clk 0:01:27.9]} 23. Re6 {[%clk 0:01:24.4]} 23... Kf7 {[%clk
0:01:25.4]} 24. f3 {[%clk 0:01:13.3]} 24... Bf8 {[%clk 0:01:22.6]} 25. Kf2
{[%clk 0:01:10.5]} 25... Re7 {[%clk 0:01:06.4]} 26. Rxe7+ {[%clk 0:01:07.9]}
26... Bxe7 {[%clk 0:01:07.3]} 27. Rc1 {[%clk 0:00:53.3]} 27... Ke6 {[%clk
0:00:53.3]} 28. c4 {[%clk 0:00:50.3]} 28... dxc4 {[%clk 0:00:53]} 29. Rxc4
{[%clk 0:00:49.9]} 29... Kd7 {[%clk 0:00:51.9]} 30. Ra4 {[%clk 0:00:41.1]} 30...
Rb6 {[%clk 0:00:46]} 31. Ra5 {[%clk 0:00:39.7]} 31... c5 {[%clk 0:00:43]} 32. d5
{[%clk 0:00:34.3]} 32... Bd8 {[%clk 0:00:32.5]} 33. Ra4 {[%clk 0:00:33.5]} 33...
h4 {[%clk 0:00:24.3]} 34. Bd2 {[%clk 0:00:31.9]} 34... Rb5 {[%clk 0:00:13.2]}
35. Rxh4 {[%clk 0:00:30.8]} 35... a5 {[%clk 0:00:13.7]} 36. Rh7+ {[%clk
0:00:30.2]} 36... Kc8 {[%clk 0:00:13.7]} 37. Ra7 {[%clk 0:00:24.9]} 37... c4
{[%clk 0:00:14]} 38. bxc4 {[%clk 0:00:24]} 38... Rb2 {[%clk 0:00:14.2]} 39. Ke1
{[%clk 0:00:22.6]} 39... Rxa2 {[%clk 0:00:13.4]} 40. h4 {[%clk 0:00:21.6]} 40...
Rc2 {[%clk 0:00:13.2]} 41. Ra6 {[%clk 0:00:18.1]} 41... Kd7 {[%clk 0:00:08.5]}
42. h5 {[%clk 0:00:17.1]} 42... Rxc4 {[%clk 0:00:08]} 43. g3 {[%clk 0:00:17.3]}
43... Rc7 {[%clk 0:00:03.5]} 44. h6 {[%clk 0:00:15.5]} 44... Ke8 {[%clk
0:00:03.8]} 45. Bf4 {[%clk 0:00:14.6]} 45... a4 {[%clk 0:00:03.6]} 46. Rxa4
{[%clk 0:00:14.3]} 46... Rh7 {[%clk 0:00:02.5]} 47. g4 {[%clk 0:00:14]} 47...
fxg4 {[%clk 0:00:02.2]} 48. fxg4 {[%clk 0:00:14.9]} 48... Be7 {[%clk 0:00:02.9]}
49. Ra7 {[%clk 0:00:14.3]} 49... Rh8 {[%clk 0:00:01.3]} 50. Ke2 {[%clk
0:00:12.9]} 50... Rg8 {[%clk 0:00:01.2]} 51. Kf3 {[%clk 0:00:11.7]} 51... Rh8
{[%clk 0:00:01.3]} 52. Ra8+ {[%clk 0:00:11.6]} 52... Bd8 {[%clk 0:00:01.2]} 53.
Bxd6 {[%clk 0:00:11.5]} 53... Rxh6 {[%clk 0:00:01]} 54. Bc7 {[%clk 0:00:11.8]}
1-0

[Event "Late-Titled-Tuesday-Blitz-April-30-2024"]
[Site "Chess.com"]
[Date "2024.04.30"]
[Round "4"]
[White "Yerkinio"]
[Black "WPWPWP-2015"]
[Result "1-0"]
[WhiteElo "2657"]
[BlackElo "2480"]
[TimeControl "180+1"]
[EndTime "14:41:25 PDT"]
[Termination "Yerkinio won by resignation"]

1. e4 {[%clk 0:02:56.1]} 1... c5 {[%clk 0:02:59.5]} 2. Nf3 {[%clk 0:02:55.5]}
2... e6 {[%clk 0:02:59.7]} 3. d4 {[%clk 0:02:55.9]} 3... cxd4 {[%clk 0:03:00.1]}
4. Nxd4 {[%clk 0:02:56.8]} 4... Nc6 {[%clk 0:03:00.5]} 5. Nc3 {[%clk 0:02:55.8]}
5... a6 {[%clk 0:02:59.8]} 6. Be3 {[%clk 0:02:54.7]} 6... b5 {[%clk 0:02:57.5]}
7. Nxc6 {[%clk 0:02:53.2]} 7... dxc6 {[%clk 0:02:58.4]} 8. Qxd8+ {[%clk
0:02:52.6]} 8... Kxd8 {[%clk 0:02:59.3]} 9. O-O-O+ {[%clk 0:02:46.9]} 9... Ke8
{[%clk 0:02:53.4]} 10. g3 {[%clk 0:02:28.8]} 10... e5 {[%clk 0:02:52.2]} 11. f4
{[%clk 0:02:24.6]} 11... Bb4 {[%clk 0:02:43]} 12. fxe5 {[%clk 0:02:18.4]} 12...
Ne7 {[%clk 0:02:37.1]} 13. a3 {[%clk 0:02:05.4]} 13... Bxc3 {[%clk 0:02:34.4]}
14. bxc3 {[%clk 0:02:06.3]} 14... Bg4 {[%clk 0:02:28.3]} 15. Rd6 {[%clk
0:02:04.7]} 15... Bf3 {[%clk 0:02:27.4]} 16. Rg1 {[%clk 0:01:59.2]} 16... Bxe4
{[%clk 0:02:27.6]} 17. Bh3 {[%clk 0:01:53.8]} 17... Bf5 {[%clk 0:02:16]} 18. Bg2
{[%clk 0:01:51.9]} 18... h6 {[%clk 0:01:45.7]} 19. Bc5 {[%clk 0:01:41.9]} 19...
Rc8 {[%clk 0:01:35.7]} 20. g4 {[%clk 0:01:32.6]} 20... Be6 {[%clk 0:01:35.2]}
21. Be4 {[%clk 0:01:25.5]} 21... h5 {[%clk 0:01:20.4]} 22. g5 {[%clk 0:00:48.1]}
22... g6 {[%clk 0:01:16.1]} 23. Rgd1 {[%clk 0:00:35]} 23... Bd5 {[%clk
0:00:40.4]} 24. Bxd5 {[%clk 0:00:26.5]} 24... Nxd5 {[%clk 0:00:36.1]} 25. e6
{[%clk 0:00:24.8]} 25... fxe6 {[%clk 0:00:35.5]} 26. Rxe6+ {[%clk 0:00:25.1]}
26... Kf7 {[%clk 0:00:34.2]} 27. Rd6 {[%clk 0:00:24.4]} 27... Rc7 {[%clk
0:00:25.9]} 28. Rf1+ {[%clk 0:00:24.4]} 28... Kg8 {[%clk 0:00:24.6]} 29. Bd4
{[%clk 0:00:19.6]} 29... Kh7 {[%clk 0:00:15.2]} 30. Bxh8 {[%clk 0:00:17.2]}
30... Kxh8 {[%clk 0:00:16.1]} 31. Rxg6 {[%clk 0:00:17.6]} 31... Kh7 {[%clk
0:00:16.5]} 32. Rh6+ {[%clk 0:00:15.8]} 32... Kg7 {[%clk 0:00:17]} 33. Kb2
{[%clk 0:00:14.8]} 33... Ne3 {[%clk 0:00:15]} 34. Rff6 {[%clk 0:00:14.5]} 34...
Nc4+ {[%clk 0:00:09.3]} 35. Kb3 {[%clk 0:00:15]} 35... Ne5 {[%clk 0:00:08.8]}
36. Re6 {[%clk 0:00:13.4]} 36... Nf7 {[%clk 0:00:07.1]} 37. Rxc6 {[%clk
0:00:12.7]} 37... Rd7 {[%clk 0:00:06.7]} 38. Rhg6+ {[%clk 0:00:12.4]} 38... Kf8
{[%clk 0:00:06.4]} 39. Rgf6 {[%clk 0:00:11.7]} 39... Kg7 {[%clk 0:00:05.6]} 40.
h4 {[%clk 0:00:11.3]} 40... a5 {[%clk 0:00:04.2]} 41. a4 {[%clk 0:00:11.8]}
41... bxa4+ {[%clk 0:00:04.3]} 42. Kxa4 {[%clk 0:00:12.7]} 42... Rd2 {[%clk
0:00:03.3]} 43. Kxa5 {[%clk 0:00:12.7]} 43... Rd5+ {[%clk 0:00:03]} 44. Kb4
{[%clk 0:00:12.2]} 44... Ne5 {[%clk 0:00:03.2]} 45. Rc7+ {[%clk 0:00:12.2]}
45... Kg8 {[%clk 0:00:03.1]} 46. Rb6 {[%clk 0:00:11.5]} 46... Nd7 {[%clk
0:00:02.2]} 47. Rbb7 {[%clk 0:00:10.8]} 47... Nf8 {[%clk 0:00:02.2]} 48. Rc8
{[%clk 0:00:10.7]} 48... Rd6 {[%clk 0:00:01.3]} 49. Rbb8 {[%clk 0:00:10.9]}
49... Kg7 {[%clk 0:00:01.5]} 50. Rxf8 {[%clk 0:00:10.7]} 50... Kg6 {[%clk
0:00:01.5]} 51. Rf6+ {[%clk 0:00:10.5]} 51... Kh7 {[%clk 0:00:01.4]} 52. Rxd6
{[%clk 0:00:09.8]} 52... Kg7 {[%clk 0:00:02]} 53. Rb7+ {[%clk 0:00:08.6]} 1-0

[Event "Late-Titled-Tuesday-Blitz-April-30-2024"]
[Site "Chess.com"]
[Date "2024.04.30"]
[Round "4"]
[White "Pig-filth"]
[Black "Mikhail_Golubev"]
[Result "1-0"]
[WhiteElo "2305"]
[BlackElo "2616"]
[TimeControl "180+1"]
[EndTime "14:41:27 PDT"]
[Termination "Pig-filth won on time"]

1. d4 {[%clk 0:03:00.9]} 1... Nf6 {[%clk 0:02:59.2]} 2. Bg5 {[%clk 0:02:57.7]}
2... d5 {[%clk 0:02:59]} 3. Bxf6 {[%clk 0:02:56.5]} 3... gxf6 {[%clk 0:02:58.8]}
4. e3 {[%clk 0:02:55.4]} 4... c5 {[%clk 0:02:49.7]} 5. Nc3 {[%clk 0:02:48.7]}
5... Nc6 {[%clk 0:02:41.4]} 6. Qh5 {[%clk 0:02:43.4]} 6... cxd4 {[%clk
0:02:24.4]} 7. exd4 {[%clk 0:02:43.3]} 7... Be6 {[%clk 0:02:13.2]} 8. O-O-O
{[%clk 0:02:38.5]} 8... a6 {[%clk 0:02:11.5]} 9. Nf3 {[%clk 0:02:34.8]} 9... Qd6
{[%clk 0:02:00.2]} 10. Kb1 {[%clk 0:02:30]} 10... O-O-O {[%clk 0:01:51.6]} 11.
g3 {[%clk 0:02:26.1]} 11... Kb8 {[%clk 0:01:48.3]} 12. Nh4 {[%clk 0:02:22.8]}
12... Qb4 {[%clk 0:01:29.7]} 13. Nf5 {[%clk 0:02:09.6]} 13... Rg8 {[%clk
0:00:51.1]} 14. Ne3 {[%clk 0:01:46.4]} 14... Rg5 {[%clk 0:00:48.1]} 15. Qxh7
{[%clk 0:01:41.8]} 15... Nxd4 {[%clk 0:00:44.7]} 16. Bg2 {[%clk 0:01:37.4]}
16... Nb5 {[%clk 0:00:33.2]} 17. Nxb5 {[%clk 0:01:34.3]} 17... Qxb5 {[%clk
0:00:33.5]} 18. c4 {[%clk 0:01:20.1]} 18... Qb6 {[%clk 0:00:13.1]} 19. Bxd5
{[%clk 0:01:18.7]} 19... f5 {[%clk 0:00:03.3]} 20. Bxe6 {[%clk 0:00:43.5]} 20...
Rxd1+ {[%clk 0:00:02.3]} 21. Rxd1 {[%clk 0:00:42.7]} 21... Bg7 {[%clk
0:00:02.5]} 22. Rd2 {[%clk 0:00:36.8]} 22... fxe6 {[%clk 0:00:01.9]} 23. Qg8+
{[%clk 0:00:31.9]} 23... Ka7 {[%clk 0:00:01.5]} 24. Qd8 {[%clk 0:00:27.2]} 24...
Qxd8 {[%clk 0:00:00.1]} 25. Rxd8 {[%clk 0:00:26.9]} 25... f4 {[%clk 0:00:01]}
26. gxf4 {[%clk 0:00:21.1]} 26... Rh5 {[%clk 0:00:01.5]} 27. Rd7 {[%clk
0:00:17.8]} 27... Bf6 {[%clk 0:00:01.8]} 28. Ng4 {[%clk 0:00:13.8]} 28... Rf5
{[%clk 0:00:02.2]} 29. Nxf6 {[%clk 0:00:08.5]} 29... exf6 {[%clk 0:00:03.1]} 30.
Rd4 {[%clk 0:00:05.3]} 30... Rh5 {[%clk 0:00:03.5]} 31. Re4 {[%clk 0:00:01.9]}
31... Rxh2 {[%clk 0:00:04.1]} 32. Rxe6 {[%clk 0:00:01.3]} 32... Rxf2 {[%clk
0:00:04.4]} 33. Rxf6 {[%clk 0:00:01.9]} 33... Kb8 {[%clk 0:00:03.9]} 34. a3
{[%clk 0:00:02.1]} 34... Kc7 {[%clk 0:00:04]} 35. Rf7+ {[%clk 0:00:02.9]} 35...
Kc6 {[%clk 0:00:03.4]} 36. Ka2 {[%clk 0:00:03.8]} 36... a5 {[%clk 0:00:03.8]}
37. Kb3 {[%clk 0:00:02.4]} 37... b5 {[%clk 0:00:04.1]} 38. Rf6+ {[%clk
0:00:00.7]} 38... Kc5 {[%clk 0:00:03.5]} 39. Rf5+ {[%clk 0:00:00.4]} 39... Kb6
{[%clk 0:00:03.7]} 40. Rxb5+ {[%clk 0:00:01.3]} 40... Ka6 {[%clk 0:00:04.2]} 41.
Rf5 {[%clk 0:00:01.7]} 41... Kb6 {[%clk 0:00:04.5]} 42. Rf6+ {[%clk 0:00:00.7]}
42... Kc5 {[%clk 0:00:04.5]} 43. Rf5+ {[%clk 0:00:01.6]} 43... Kb6 {[%clk
0:00:04.2]} 44. Rb5+ {[%clk 0:00:02.3]} 44... Ka6 {[%clk 0:00:03.8]} 45. f5
{[%clk 0:00:02.6]} 45... a4+ {[%clk 0:00:04.2]} 46. Kxa4 {[%clk 0:00:02.4]}
46... Rf4 {[%clk 0:00:05.1]} 47. Rc5 {[%clk 0:00:02]} 47... Rxc4+ {[%clk
0:00:04.2]} 48. Rxc4 {[%clk 0:00:02.1]} 1-0